bitfinex-derivatives/quotes_ETHF0:USTF0_20241007
["timestamp","ask_amount","ask_price","bid_price","bid_amount"]
[1728309509962,3.15,2476.1,2475.9,0.3957]
[1728309510159,0.40393,2476.0,2475.9,0.3957]
[1728309510770,0.40393,2476.0,2475.9,0.79965]
[1728309511069,0.40395,2475.9,2475.8,3.61176]
[1728309511268,3.15,2476.0,2475.9,0.40395]
[1728309512073,3.55393,2476.0,2475.9,0.40395]
[1728309513569,0.40395,2475.9,2475.8,3.61175]
[1728309515571,3.15,2475.9,2475.6,0.3917]
[1728309515765,0.40398,2475.8,2475.7,0.40398]
[1728309516672,4.15989,2475.9,2475.5,3.6141]
[1728309516968,0.404,2475.6,2475.5,4.0181]
[1728309517568,0.404,2475.6,2475.5,0.81031]
[1728309517778,0.404,2475.6,2475.5,0.4063]
[1728309518069,0.404,2475.6,2475.5,0.81031]
[1728309519363,0.404,2475.6,2475.5,0.40401]
[1728309519569,0.404,2475.6,2475.3,0.40404]
[1728309519570,0.40405,2475.4,2475.3,0.40404]
[1728309519762,3.55405,2475.4,2475.3,0.40404]
[1728309520779,3.15,2475.7,2475.6,0.40398]
[1728309520972,3.15,2475.9,2475.5,3.2078]
[1728309521172,1.00984,2476.0,2475.9,0.40394]
[1728309521173,0.40395,2476.0,2475.9,0.40394]
[1728309521473,4.56461,2476.1,2475.6,0.4249]
[1728309521777,3.55398,2475.8,2475.7,0.40396]
[1728309523170,0.40398,2475.8,2475.7,0.40396]
[1728309529174,3.55398,2475.8,2475.7,0.40396]
[1728309530372,3.55398,2475.8,2475.6,0.4249]
[1728309530579,3.55398,2475.8,2475.7,0.40398]
[1728309531175,3.55398,2475.8,2475.6,0.4249]
[1728309531376,0.40403,2475.4,2475.3,0.7862]
[1728309531676,3.55403,2475.4,2475.3,0.7862]
[1728309531880,3.55403,2475.4,2475.3,1.19025]
[1728309533476,3.15,2475.4,2475.3,1.19025]
[1728309533681,3.55403,2475.4,2475.3,1.19025]
[1728309535092,3.15,2475.4,2475.3,1.19025]
[1728309536081,0.40396,2475.9,2475.8,0.40394]
[1728309536276,3.5358,2476.1,2475.8,3.61177]
[1728309536478,3.93972,2476.1,2476.0,0.40393]
[1728309536687,3.15,2476.1,2476.0,0.40393]
[1728309536873,3.55392,2476.1,2476.0,0.40393]
[1728309537176,3.15,2476.1,2475.9,0.4063]
[1728309537382,3.55392,2476.1,2476.0,0.40393]
[1728309538174,3.15,2476.1,2476.0,0.40393]
[1728309538776,3.55392,2476.1,2476.0,0.40393]
[1728309538983,0.40393,2476.0,2475.9,1.22673]
[1728309539185,0.4205,2476.4,2475.9,0.8228]
[1728309539487,3.15,2476.0,2475.9,0.8228]
[1728309539787,3.55393,2476.0,2475.9,0.4063]
[1728309539980,3.55393,2476.0,2475.8,4.03775]
[1728309539981,0.40395,2475.9,2475.8,4.03775]
[1728309540181,0.40395,2475.9,2475.8,3.61177]
[1728309540376,0.40395,2475.9,2475.8,3.2078]
[1728309540682,0.4,2475.9,2475.8,3.61177]
[1728309540873,0.40395,2475.9,2475.8,3.61176]
[1728309541078,0.40395,2475.9,2475.8,3.2078]
[1728309541481,0.40395,2475.9,2475.8,3.61177]
[1728309541877,0.40395,2475.9,2475.8,3.2078]
[1728309543285,4.44315,2475.9,2475.8,3.2078]
[1728309543677,4.82735,2475.9,2475.8,3.2078]
[1728309544989,3.15,2476.2,2475.8,3.2078]
[1728309545286,0.40395,2475.9,2475.8,3.2078]
[1728309545482,0.40395,2475.9,2475.8,3.61177]
[1728309545887,3.15,2476.2,2475.8,7.247]
[1728309546196,3.5539,2476.2,2476.1,0.40392]
[1728309547388,0.40392,2476.1,2476.0,0.80963]
[1728309548181,3.5539,2476.2,2476.1,0.40392]
[1728309549397,3.15,2476.4,2476.0,0.8254]
[1728309549597,3.55388,2476.4,2476.3,0.40387]
[1728309549793,3.15,2476.4,2476.1,3.2078]
[1728309550096,0.4039,2476.3,2476.2,0.40389]
[1728309550689,3.15,2476.4,2476.3,0.40388]
[1728309550690,3.55388,2476.4,2476.3,0.40388]
[1728309551789,3.55387,2476.4,2476.3,0.40388]
[1728309552294,4.15969,2476.4,2476.0,1.22932]
[1728309552598,0.40392,2476.1,2476.0,1.22933]
[1728309553101,3.55392,2476.2,2476.1,0.40392]
[1728309554183,0.40392,2476.2,2476.1,0.40392]
[1728309555388,0.40392,2476.2,2476.0,0.8254]
[1728309555389,3.15,2476.2,2476.0,0.8254]
[1728309555687,3.15,2476.2,2475.2,0.40405]
[1728309555688,0.40406,2475.3,2475.2,0.40405]
[1728309555891,3.55406,2475.3,2475.2,0.4176]
[1728309556387,3.55406,2475.3,2475.2,0.82166]
[1728309556594,3.15,2475.3,2475.2,0.82166]
[1728309557901,3.55405,2475.3,2475.2,0.82166]
[1728309558394,3.15,2475.3,2475.2,0.82166]
[1728309558590,0.4226,2475.5,2475.2,0.82166]
[1728309558796,3.55405,2475.3,2475.2,0.82166]
[1728309559395,3.55405,2475.3,2475.2,0.4176]
[1728309559599,0.40406,2475.2,2475.1,3.2078]
[1728309559801,3.15,2475.2,2475.1,3.61188]
[1728309560201,3.5726,2475.5,2475.1,3.2078]
[1728309560404,3.15,2475.7,2475.4,3.2078]
[1728309560706,3.554,2475.7,2475.6,0.40399]
[1728309561895,6.51978,2476.2,2475.6,5.0492]
[1728309562095,3.15,2476.2,2475.7,3.2078]
[1728309562302,0.40394,2476.0,2475.9,0.40393]
[1728309562803,3.15,2476.2,2475.8,0.3924]
[1728309563099,0.40392,2476.1,2476.0,0.40393]
[1728309563304,3.15,2476.2,2475.8,0.3924]
[1728309563496,0.40394,2476.0,2475.9,0.40394]
[1728309563903,0.40393,2476.1,2476.0,0.40393]
[1728309564100,0.40395,2476.0,2475.9,0.40394]
[1728309564604,0.40393,2476.1,2476.0,0.40393]
[1728309564801,4.15977,2476.2,2475.8,0.3924]
[1728309565102,4.15977,2476.2,2476.0,0.40393]
[1728309565103,0.40393,2476.1,2476.0,0.40393]
[1728309565297,0.40394,2476.0,2475.9,0.40393]
[1728309565700,3.55391,2476.2,2476.1,0.40392]
[1728309566109,0.4176,2476.4,2476.0,3.2078]
[1728309566110,3.15,2476.4,2476.0,3.2078]
[1728309566308,3.15,2476.4,2476.1,0.8022]
[1728309566502,0.4039,2476.3,2476.2,0.40389]
[1728309568003,0.4039,2476.3,2476.1,0.8022]
[1728309568207,3.5539,2476.2,2476.1,0.4088]
[1728309570011,4.77698,2476.7,2476.4,0.40385]
[1728309570012,0.40387,2476.5,2476.4,0.40385]
[1728309570316,0.40384,2476.6,2476.5,0.40383]
[1728309571018,3.15,2476.8,2476.5,4.0376]
[1728309571316,0.40382,2476.7,2476.6,0.81312]
[1728309571712,3.55381,2476.8,2476.7,0.40382]
[1728309571911,4.55187,2477.0,2476.6,0.4093]
[1728309572116,0.40379,2476.9,2476.8,0.40379]
[1728309572308,0.79617,2477.0,2476.9,0.40379]
[1728309572509,3.15,2477.0,2476.7,3.2078]
[1728309572705,0.4038,2476.8,2476.7,3.2078]
[1728309572924,0.40382,2476.7,2476.6,0.81313]
[1728309574213,0.40378,2477.0,2476.8,0.40379]
[1728309574619,0.40378,2477.0,2476.8,0.4038]
[1728309574920,3.94906,2477.1,2476.7,3.61162]
[1728309575108,0.79906,2477.1,2477.0,0.40377]
[1728309575315,0.79906,2477.1,2476.9,0.40378]
[1728309575817,0.79906,2477.1,2477.0,0.40377]
[1728309576020,0.3953,2477.1,2477.0,0.40377]
[1728309576315,0.3982,2477.2,2477.1,0.40375]
[1728309576719,0.80195,2477.2,2477.0,0.40376]
[1728309576923,0.3982,2477.2,2476.8,1.401]
[1728309577221,0.3982,2477.2,2477.1,0.40375]
[1728309577519,0.80194,2477.2,2477.1,0.40375]
[1728309577724,0.3982,2477.2,2477.1,0.40375]
[1728309578718,3.95194,2477.2,2477.1,0.40375]
[1728309580917,3.5482,2477.2,2477.1,0.40375]
[1728309581114,0.4196,2477.4,2477.3,0.40372]
[1728309581315,0.8107,2477.5,2477.4,0.4037]
[1728309581518,0.407,2477.5,2477.4,0.4037]
[1728309581816,0.407,2477.5,2477.1,0.79215]
[1728309581817,0.40374,2477.2,2477.1,0.79215]
[1728309582017,3.55374,2477.2,2477.1,0.3884]
[1728309582529,3.55374,2477.2,2477.1,0.79215]
[1728309582725,0.40374,2477.2,2477.1,0.3884]
[1728309582927,0.40374,2477.2,2477.1,0.79215]
[1728309584026,0.8107,2477.5,2477.1,4.4252]
[1728309584229,0.8107,2477.5,2477.3,3.2078]
[1728309584230,0.407,2477.5,2477.3,3.2078]
[1728309584426,0.4037,2477.4,2477.3,3.2078]
[1728309585824,0.4037,2477.4,2477.1,0.3884]
[1728309585825,0.40374,2477.2,2477.1,0.3884]
[1728309586234,4.15928,2477.4,2477.0,3.61156]
[1728309586530,0.40375,2477.1,2477.0,3.61156]
[1728309586731,0.40375,2477.1,2477.0,3.2078]
[1728309587035,0.40375,2477.1,2476.8,0.80299]
[1728309587036,0.40379,2476.9,2476.8,0.80299]
[1728309587529,3.15,2477.2,2476.7,3.2078]
[1728309587727,0.4038,2476.8,2476.7,3.61161]
[1728309587919,0.40379,2477.0,2476.9,0.40378]
[1728309588124,0.4038,2476.9,2476.8,0.4038]
[1728309588328,0.4038,2476.8,2476.7,3.61161]
[1728309588826,0.4055,2477.0,2476.7,3.2078]
[1728309589132,0.4055,2477.0,2476.8,0.40379]
[1728309589133,0.4038,2476.9,2476.8,0.40379]
[1728309590728,4.56623,2477.3,2476.8,4.0376]
[1728309591036,0.40375,2477.2,2477.1,0.40374]
[1728309592228,0.40375,2477.1,2477.0,3.2078]
[1728309594926,0.40375,2477.1,2477.0,3.61157]
[1728309595435,0.40375,2477.1,2477.0,3.2078]
[1728309596135,0.40375,2477.1,2477.0,3.61157]
[1728309597235,0.40375,2477.1,2476.8,1.00951]
[1728309597236,0.4038,2476.9,2476.8,0.40378]
[1728309597628,0.4038,2476.8,2476.7,4.01939]
[1728309598039,0.4169,2477.0,2476.7,3.6156]
[1728309598238,0.82069,2477.0,2476.9,0.40379]
[1728309599341,1.41623,2477.3,2476.7,4.62515]
[1728309599545,0.40375,2477.1,2477.0,3.61156]
[1728309600138,0.40375,2477.1,2477.0,0.40376]
[1728309600347,0.40375,2477.1,2476.7,4.62513]
[1728309600348,0.40378,2477.1,2476.9,0.40377]
[1728309600648,0.40377,2477.1,2477.0,0.40375]
[1728309600852,0.40374,2477.3,2477.2,0.40372]
[1728309601037,1.83846,2477.5,2477.3,0.4037]
[1728309601038,0.40372,2477.4,2477.3,0.4037]
[1728309601238,0.40372,2477.4,2477.3,0.7984]
[1728309601545,3.55372,2477.4,2477.2,3.2078]
[1728309601741,0.40372,2477.3,2477.2,3.2078]
[1728309601942,1.41327,2476.9,2476.7,3.2078]
[1728309602141,0.4169,2477.5,2477.0,0.40375]
[1728309602142,0.40376,2477.1,2477.0,0.40375]
[1728309602446,0.40374,2477.3,2477.2,0.40372]
[1728309602844,1.00929,2477.4,2477.0,3.2078]
[1728309603043,0.40375,2477.2,2477.1,0.40374]
[1728309603941,0.40375,2477.1,2477.0,3.61157]
[1728309604341,0.40375,2477.1,2477.0,3.2078]
[1728309604545,0.40379,2476.9,2476.8,0.7985]
[1728309604745,0.4038,2476.8,2476.7,3.61161]
[1728309605138,0.40378,2477.1,2477.0,0.40376]
[1728309605343,0.40377,2477.0,2476.9,0.80757]
[1728309605651,0.40376,2477.1,2476.9,0.4038]
[1728309605846,1.00935,2477.2,2476.9,0.4038]
[1728309606146,0.40377,2477.1,2477.0,0.79855]
[1728309606537,0.40377,2477.1,2477.0,0.3948]
[1728309607740,0.40377,2477.1,2477.0,0.79857]
[1728309608149,0.40377,2477.1,2477.0,0.3948]
[1728309608752,0.40377,2477.1,2477.0,0.79857]
[1728309608947,0.40375,2477.1,2477.0,0.79857]
[1728309609147,0.40379,2477.0,2476.9,0.40377]
[1728309609448,0.4038,2476.8,2476.7,3.632]
[1728309609656,3.5538,2476.8,2476.7,3.2078]
[1728309609857,0.40385,2476.5,2476.4,0.4039]
[1728309610150,0.4038,2476.9,2476.8,0.40379]
[1728309610348,1.00931,2477.3,2476.7,6.3578]
[1728309610550,0.40372,2477.4,2477.3,0.40371]
[1728309610752,0.40374,2477.3,2477.2,0.40373]
[1728309610951,0.40374,2477.3,2477.2,1.20213]
[1728309611250,0.4037,2477.5,2477.4,0.40369]
[1728309611457,0.40369,2477.5,2477.4,3.6115]
[1728309611848,0.82149,2477.6,2477.5,0.40369]
[1728309612044,14.26213,2477.8,2477.7,0.40366]
[1728309612045,0.40365,2477.8,2477.7,0.40366]
[1728309612249,0.40367,2477.7,2477.6,0.40366]
[1728309612648,0.40367,2477.7,2477.6,4.036]
[1728309613048,0.40367,2477.7,2477.3,3.5593]
[1728309613049,0.4037,2477.4,2477.3,0.4093]
[1728309613353,0.4037,2477.4,2477.3,0.81302]
[1728309613550,1.39942,2477.8,2477.3,0.4093]
[1728309613752,0.40369,2477.5,2477.4,3.61149]
[1728309614153,0.40369,2477.5,2477.4,3.2078]
[1728309614452,0.40365,2477.8,2477.7,0.40365]
[1728309614654,1.42686,2478.0,2477.4,3.2078]
[1728309614961,1.00908,2477.9,2477.4,4.21706]
[1728309615153,0.40365,2477.8,2477.7,0.40364]
[1728309615347,0.40364,2477.9,2477.8,0.40363]
[1728309615548,0.40361,2478.1,2478.0,0.4036]
[1728309615748,0.40362,2478.0,2477.9,0.40362]
[1728309616254,0.40361,2478.1,2477.8,0.3899]
[1728309616255,0.4036,2478.1,2478.0,0.40359]
[1728309616450,0.40362,2478.0,2477.9,0.40361]
[1728309616754,3.2078,2478.2,2477.8,0.3899]
[1728309617056,0.40362,2478.0,2477.9,0.40361]
[1728309617955,0.40362,2477.9,2477.8,0.79353]
[1728309618349,3.5578,2478.3,2477.8,4.4259]
[1728309618549,4.56672,2478.3,2478.0,0.40361]
[1728309618850,0.40359,2478.1,2478.0,0.40361]
[1728309619450,0.40362,2478.0,2477.9,0.40362]
[1728309619650,0.40361,2478.1,2478.0,0.4036]
[1728309619859,0.40361,2478.1,2477.8,0.3899]
[1728309619860,0.40361,2478.0,2477.9,0.40361]
[1728309620258,0.40358,2478.2,2478.1,0.40358]
[1728309621454,0.40357,2478.3,2478.2,0.40356]
[1728309621750,0.40357,2478.3,2478.2,0.40357]
[1728309621951,0.40355,2478.4,2478.3,0.40354]
[1728309622158,0.40357,2478.3,2478.2,0.40356]
[1728309622763,0.40355,2478.4,2478.3,0.40355]
[1728309622954,1.00882,2478.5,2478.0,3.2078]
[1728309623159,0.40358,2478.2,2478.1,0.40358]
[1728309623555,1.00892,2478.3,2478.0,3.2078]
[1728309623762,0.40359,2478.2,2478.1,0.40358]
[1728309623960,0.40359,2478.2,2478.1,0.80348]
[1728309624764,0.40359,2478.2,2478.1,0.3999]
[1728309625157,0.40362,2477.9,2477.8,0.79353]
[1728309625558,0.40362,2477.9,2477.8,4.4259]
[1728309625759,3.15,2477.9,2477.6,0.7964]
[1728309625967,0.40362,2478.0,2477.9,0.40361]
[1728309626261,3.15,2478.5,2477.7,6.3578]
[1728309626467,0.40357,2478.3,2478.2,0.40357]
[1728309626767,0.40357,2478.3,2478.2,0.3965]
[1728309626969,0.40355,2478.4,2478.3,0.40354]
[1728309627166,0.40355,2478.4,2478.3,0.80004]
[1728309627359,0.40354,2478.5,2478.4,0.40353]
[1728309627763,1.00879,2478.6,2478.3,0.3965]
[1728309627965,1.00879,2478.6,2478.3,0.80005]
[1728309627966,0.40354,2478.4,2478.3,0.80005]
[1728309628362,3.9484,2478.7,2478.3,0.3965]
[1728309628561,0.40352,2478.6,2478.5,0.40352]
[1728309628965,0.4009,2479.0,2478.5,13.1844]
[1728309629277,0.40346,2479.0,2478.9,0.40346]
[1728309629466,3.61123,2479.1,2479.0,0.40344]
[1728309629661,3.2078,2479.1,2479.0,0.82724]
[1728309629862,6.76123,2479.1,2479.0,0.4238]
[1728309630766,3.55343,2479.1,2479.0,0.4238]
[1728309631168,0.40343,2479.1,2479.0,0.82724]
[1728309631368,4.15844,2479.5,2479.0,7.6652]
[1728309631574,0.8302,2479.6,2479.0,3.6316]
[1728309631770,0.40337,2479.5,2479.3,0.40338]
[1728309632165,0.8302,2479.6,2479.3,3.2078]
[1728309632379,0.40337,2479.5,2479.4,0.40337]
[1728309632566,3.77023,2480.0,2479.4,0.8374]
[1728309632763,0.40334,2479.7,2479.6,3.2078]
[1728309633073,0.40334,2479.7,2479.6,4.02585]
[1728309633274,0.40333,2479.8,2479.6,4.02585]
[1728309633474,3.15,2479.9,2479.6,3.6225]
[1728309633776,3.55333,2479.7,2479.6,3.6225]
[1728309634071,3.15,2479.7,2479.6,4.02585]
[1728309634668,3.15,2479.9,2479.6,7.6553]
[1728309634870,3.5533,2479.9,2479.8,0.40331]
[1728309635668,0.4033,2479.9,2479.8,0.40331]
[1728309635873,0.40327,2480.1,2479.6,3.6225]
[1728309636068,0.4033,2480.0,2479.9,3.2078]
[1728309636481,0.4033,2480.0,2479.6,0.4147]
[1728309636482,0.40333,2479.7,2479.6,3.2078]
[1728309636779,0.4034,2479.3,2479.2,0.8004]
[1728309637169,0.4034,2479.3,2479.2,4.834]
[1728309637373,0.4034,2479.3,2479.2,0.397]
[1728309637571,0.40341,2479.2,2479.1,3.2078]
[1728309637778,0.40339,2479.4,2479.3,0.40339]
[1728309637978,0.40339,2479.4,2479.1,4.01403]
[1728309637979,0.40341,2479.2,2479.1,4.01403]
[1728309638277,3.5564,2479.5,2479.4,0.40338]
[1728309638278,3.55337,2479.5,2479.4,0.40338]
[1728309638475,3.15,2479.5,2479.1,3.6106]
[1728309638874,0.40341,2479.2,2479.1,3.2078]
[1728309639069,3.15,2479.3,2478.8,3.6106]
[1728309639070,0.40346,2478.9,2478.8,3.6106]
[1728309639278,0.40346,2478.9,2478.4,1.39762]
[1728309639279,3.15,2478.9,2478.5,3.2078]
[1728309639468,3.55351,2478.6,2478.5,3.2078]
[1728309640371,3.55351,2478.6,2477.9,3.2078]
[1728309640372,0.40357,2478.2,2477.9,3.2078]
[1728309640577,3.15,2478.0,2477.7,0.80645]
[1728309640785,0.40364,2477.8,2477.7,0.80645]
[1728309641291,3.15,2478.0,2477.7,0.4028]
[1728309641583,3.15,2478.1,2478.0,0.40361]
[1728309641780,3.15,2478.3,2478.2,0.40356]
[1728309642079,3.15,2478.3,2478.2,0.40357]
[1728309642273,4.15866,2478.9,2478.2,13.243]
[1728309642274,3.15,2478.7,2478.2,13.243]
[1728309642480,0.40351,2478.7,2478.5,3.61132]
[1728309642679,2.359,2478.9,2478.5,3.61132]
[1728309642873,0.4035,2478.7,2478.6,0.40351]
[1728309643077,0.40348,2478.8,2478.7,0.40349]
[1728309643280,0.4035,2478.7,2478.6,0.4035]
[1728309643774,0.40348,2478.8,2478.7,0.40349]
[1728309643976,4.6582,2479.1,2478.5,3.2078]
[1728309643977,5.06163,2479.1,2479.0,0.40344]
[1728309644182,5.06163,2479.1,2478.9,0.40345]
[1728309644183,0.40345,2479.0,2478.9,0.40345]
[1728309644483,0.40346,2478.9,2478.8,3.2078]
[1728309644677,0.40345,2479.0,2478.9,0.40345]
[1728309644985,0.40341,2479.2,2479.1,0.40342]
[1728309645182,0.40341,2479.2,2479.0,0.40343]
[1728309645379,0.40341,2479.2,2478.9,0.4041]
[1728309645580,0.40344,2479.0,2478.9,0.80755]
[1728309645785,0.40344,2479.1,2479.0,0.40344]
[1728309646087,1.0085,2479.3,2479.0,0.34719527]
[1728309646282,1.0085,2479.3,2478.9,0.4041]
[1728309646479,1.00831,2479.8,2479.1,3.2078]
[1728309646676,0.40337,2479.5,2479.4,0.40337]
[1728309646884,0.40335,2479.6,2479.2,0.40341]
[1728309647182,0.40339,2479.4,2479.2,0.4034]
[1728309647582,0.40337,2479.5,2479.1,3.6286]
[1728309647783,0.8282,2479.8,2479.1,3.6286]
[1728309647784,0.40336,2479.6,2479.1,3.6286]
[1728309647971,0.8282,2479.8,2479.1,3.6286]
[1728309648172,0.8282,2479.8,2479.4,3.2078]
[1728309648385,0.40336,2479.5,2479.4,3.2078]
[1728309648581,0.40335,2479.6,2479.5,0.40336]
[1728309648784,0.8282,2479.8,2479.4,3.2078]
[1728309648980,0.8282,2479.8,2479.7,0.40333]
[1728309648981,1.23152,2479.8,2479.7,0.40333]
[1728309649189,0.40335,2479.6,2479.5,0.81545]
[1728309649381,0.40334,2479.7,2479.6,0.40334]
[1728309649581,1.23152,2479.8,2479.7,0.40333]
[1728309649893,0.40324,2480.3,2480.2,0.40324]
[1728309650083,0.3846,2480.7,2480.1,3.2078]
[1728309650391,0.40322,2480.4,2480.3,0.40323]
[1728309650584,1.39255,2480.7,2480.1,3.2078]
[1728309650781,1.39255,2480.7,2480.5,0.4032]
[1728309650782,0.40319,2480.6,2480.5,0.4032]
[1728309651090,0.40322,2480.5,2480.3,0.40322]
[1728309651288,0.40322,2480.5,2480.3,0.40323]
[1728309651791,0.3846,2480.7,2480.3,0.40323]
[1728309651792,0.40318,2480.6,2480.3,0.40323]
[1728309651990,0.40321,2480.5,2480.3,0.40323]
[1728309652289,0.3846,2480.7,2480.3,0.40323]
[1728309652492,0.40321,2480.5,2480.2,0.3932]
[1728309652794,0.40322,2480.4,2480.3,0.40322]
[1728309652992,1.39255,2480.7,2480.1,3.2078]
[1728309652993,1.41123,2480.5,2480.1,3.2078]
[1728309653186,1.00799,2480.6,2480.1,3.2078]
[1728309653187,0.40325,2480.2,2480.1,3.2078]
[1728309653385,1.00805,2480.4,2480.0,0.40327]
[1728309653386,0.40327,2480.1,2480.0,0.40327]
[1728309653589,1.00801,2480.5,2479.9,0.40329]
[1728309653788,1.00801,2480.5,2479.8,3.6314]
[1728309653789,0.4033,2479.9,2479.8,3.2078]
[1728309654194,0.79619,2480.0,2479.8,3.2078]
[1728309654394,0.4033,2479.9,2479.8,3.2078]
[1728309654690,0.4033,2479.9,2479.8,3.61111]
[1728309654881,0.3929,2480.0,2479.7,0.4193]
[1728309655089,0.40333,2479.7,2479.6,0.40334]
[1728309655281,0.40331,2479.9,2479.8,0.40331]
[1728309655486,0.3929,2480.0,2479.5,3.2078]
[1728309655991,0.40335,2479.6,2479.5,3.2078]
[1728309656192,1.00825,2479.9,2479.4,0.40337]
[1728309656384,0.3929,2480.0,2479.2,3.6271]
[1728309656790,1.00825,2479.9,2479.2,3.6271]
[1728309656989,0.40335,2479.6,2479.5,3.61115]
[1728309657186,1.00825,2479.9,2479.5,3.61115]
[1728309657386,0.40335,2479.7,2479.5,3.2078]
[1728309657692,0.40335,2479.7,2479.6,0.40335]
[1728309657994,0.3929,2480.0,2479.5,3.2078]
[1728309658293,1.42634,2480.2,2479.5,3.2078]
[1728309658493,1.42634,2480.2,2479.8,0.4033]
[1728309658494,0.4033,2479.9,2479.8,0.4033]
[1728309658684,1.00817,2480.1,2479.5,3.2078]
[1728309658888,0.40332,2479.8,2479.7,0.40332]
[1728309659980,0.40331,2479.9,2479.8,0.40331]
[1728309660188,0.8247,2480.2,2479.5,3.2078]
[1728309660396,0.8247,2480.2,2479.6,0.4213]
[1728309660596,0.40328,2480.0,2479.9,0.40329]
[1728309660787,0.8247,2480.2,2479.8,3.2078]
[1728309660995,1.00803,2480.5,2479.8,3.2078]
[1728309661292,0.40322,2480.4,2479.9,0.8365]
[1728309661496,0.40325,2480.2,2480.1,0.40325]
[1728309661791,1.00793,2480.7,2480.1,3.2078]
[1728309661792,1.00799,2480.6,2480.1,3.2078]
[1728309661985,1.00793,2480.7,2480.1,3.2078]
[1728309662191,1.00803,2480.5,2480.1,3.2078]
[1728309662383,0.40325,2480.2,2480.1,3.61105]
[1728309662993,0.40325,2480.2,2480.1,3.2078]
[1728309663202,0.40328,2480.0,2479.9,0.4166]
[1728309663385,0.40328,2480.0,2479.6,0.4213]
[1728309663386,0.40333,2479.7,2479.6,0.4213]
[1728309663584,0.40333,2479.7,2479.6,0.82465]
[1728309663788,0.40333,2479.7,2479.6,4.4541]
[1728309663990,0.40333,2479.7,2479.6,4.85743]
[1728309664296,0.40333,2479.7,2479.6,0.82465]
[1728309664499,0.40332,2479.8,2479.7,0.40332]
[1728309664795,0.40331,2479.9,2479.8,0.40331]
[1728309665589,0.40331,2479.8,2479.7,0.80503]
[1728309666097,0.7827,2480.2,2479.5,3.2078]
[1728309666098,0.40335,2479.6,2479.5,3.2078]
[1728309666394,0.4034,2479.3,2479.2,0.8389]
[1728309666689,0.40336,2479.6,2479.5,0.40335]
[1728309666896,0.40337,2479.5,2479.4,0.40337]
[1728309667296,3.88,2480.1,2479.2,0.419]
[1728309667489,1.00843,2479.5,2479.2,0.419]
[1728309667692,1.00833,2479.7,2479.2,0.419]
[1728309667894,1.00833,2479.7,2479.6,0.40333]
[1728309667895,0.40334,2479.7,2479.6,0.40333]
[1728309668490,0.7827,2480.2,2479.6,4.0328]
[1728309668800,0.40322,2480.5,2480.4,0.4032]
[1728309669005,1.40498,2480.6,2480.1,0.4129]
[1728309669298,0.40325,2480.2,2480.1,0.81616]
[1728309669691,0.397,2480.6,2480.1,0.4129]
[1728309669910,0.40324,2480.3,2480.2,0.40323]
[1728309670197,0.40323,2480.4,2480.3,0.40322]
[1728309670393,1.00798,2480.6,2480.1,0.816]
[1728309670598,0.40325,2480.2,2480.1,1.21926]
[1728309670798,1.00807,2480.4,2480.0,3.2078]
[1728309670997,0.40327,2480.1,2480.0,3.2078]
[1728309671698,0.40333,2479.7,2479.6,0.8102]
[1728309671999,0.40333,2479.7,2479.6,1.21354]
[1728309672299,0.40333,2479.7,2479.6,0.8102]
[1728309672498,0.40333,2479.7,2479.5,3.61115]
[1728309672499,0.40335,2479.6,2479.5,3.61115]
[1728309672897,0.40335,2479.6,2479.5,7.64395]
[1728309673300,0.40335,2479.6,2479.5,7.2406]
[1728309673495,0.40338,2479.5,2479.4,0.40337]
[1728309673899,1.00835,2479.7,2479.2,4.0202]
[1728309674103,1.00835,2479.7,2479.2,3.6229]
[1728309674104,0.4034,2479.3,2479.2,3.6229]
[1728309674294,0.4034,2479.3,2479.2,3.61121]
[1728309674697,0.4034,2479.3,2479.2,3.2078]
[1728309675196,0.4034,2479.3,2479.2,3.61121]
[1728309675705,0.40336,2479.6,2479.5,0.40334]
[1728309675895,3.88,2480.1,2479.5,0.40334]
[1728309675896,0.40334,2479.7,2479.6,0.40333]
[1728309676091,4.7163,2480.1,2479.5,3.2078]
[1728309676299,0.40332,2479.8,2479.7,0.40331]
[1728309676495,0.40332,2479.8,2479.5,3.2078]
[1728309676496,4.7163,2480.1,2479.6,0.4199]
[1728309676697,0.40333,2479.7,2479.6,0.4199]
[1728309676896,1.00828,2479.9,2479.6,0.4199]
[1728309677097,0.40333,2479.7,2479.6,0.82323]
[1728309677297,0.40333,2479.7,2479.6,0.4199]
[1728309677900,0.40335,2479.6,2479.5,3.61116]
[1728309678295,1.00832,2479.8,2479.3,0.8162]
[1728309678499,0.40337,2479.5,2479.4,0.40337]
[1728309678701,0.40336,2479.6,2479.5,0.40335]
[1728309678901,0.40335,2479.6,2479.5,0.40336]
[1728309679609,0.40338,2479.5,2479.4,0.40337]
[1728309679904,4.7163,2480.1,2479.3,0.8162]
[1728309680105,4.7163,2480.1,2480.0,0.40327]
[1728309680106,0.40328,2480.1,2480.0,0.40327]
[1728309680304,0.3926,2480.6,2480.0,6.0]
[1728309680505,3.88,2481.0,2480.4,3.2078]
[1728309680506,0.4032,2480.5,2480.4,3.2078]
[1728309680902,0.40323,2480.3,2480.2,0.4179]
[1728309681106,0.40323,2480.4,2480.3,0.40322]
[1728309681304,1.00798,2480.6,2480.2,0.4179]
[1728309681604,0.40323,2480.4,2480.3,0.40322]